Cogmind - Beta 15 @@@ ROGUE MODE // 2025.06.26 @ 14:48:49 Player: 7604 Result: Self-destructed Performance ------------- Evolutions (7) 3500 Regions Visited (24) 4800 Robots Destroyed (314) 1570 Value Destroyed (14235) 14235 Prototype IDs (98) 1960 Alien Tech Used (1) 200 Bonus (4536) 4536 TOTAL SCORE: 30801 Bonus ------- High Alert Combat Kills 657 Follower Combat Kills 1707 Awakened Behemoth Slayer 1000 Network Hubs Disabled 200 Met Imprinter 300 Destroyed Z-Imprinter 1000 Met Warlord at Base 500 MAIN.C Attacked Warlord 500 Warlord Defense Kills 314 Built Enhanced Grunts 300 A7 Reached Mainframe 300 Met R17 at Cetus 500 Met R17 at Research 2000 Friendly Fire -4742 Cogmind --------- Core Integrity 176/1300 Matter 300/300 Energy 99/100 System Corruption 6% Temperature Cool (0) Movement Core (50) Location -3/Research Parts ------- > --- POWER (2) -------- (None) > --- PROPULSION (5) --- (None) > --- UTILITY (11) ----- Advanced Signal Interpreter Experimental Target Analyzer Improved Armor Integrity Analyzer > --- WEAPON (4) ------- CR-A16's Behemoth Slayer > --- INVENTORY (5) ---- Enhanced Biometal Leg High-capacity Storage Unit Zionite Biocell (600) Advanced Powered Armor Multitool Peak State ------------ > --- POWER ------------ Quantum-Particle Reactor > --- PROPULSION ------- Enhanced Biometal Leg Treaded Centrium-Heavy Exoskeleton > --- UTILITY ---------- Armored Scrap Engine Coolant Network High-capacity Storage Unit Advanced Sensor Array Advanced Signal Interpreter Experimental Target Analyzer Experimental Core Analyzer Improved Transmission Jammer Centrium Medium Armor Plating > --- WEAPON ----------- Helical Railgun Advanced Remote Datajack Hyp. Accelerated Helical Construct/C > --- INVENTORY -------- Particle Reactor Biometal Medium Treads Advanced Cryofiber Web Advanced Heat Sink Experimental Coolant Injector Zionite Biocell Improved Armor Integrity Analyzer Microactuators Improved Medium Armor Plating Centrium Medium Armor Plating Advanced Powered Armor Experimental Thermal Shield Experimental Thermal Shield Advanced Remote Force Field Nova Cannon Helical Railgun Helical Railgun Subdweller Shrapnel Launcher Multitool CR-A16's Behemoth Slayer [Rating: 187] Favorites ----------- Power Constructs Engine Ion Engine Power Core Neutrino Core Reactor Constructs Propulsion Light Treads Treads Light Treads Leg Aluminum Leg Hover Unit Aerolev Unit Utility High-capacity Storage Unit Device Armored Scrap Engine Storage High-capacity Storage Unit Processor Enhanced Optical Array Protection Centrium Medium Armor Plating Weapon Constructs Energy Gun Gatling Laser Energy Cannon Subdweller Beam Cannon Ballistic Gun Assault Rifle Ballistic Cannon Constructs Launcher Scatter Rocket Array Special Weapon Improved Remote Datajack Impact Weapon Great Maul Slashing Weapon Katana Piercing Weapon CR-A16's Behemoth Slayer Special Melee Weapon Datajack Build | -11 -10 -10 -8 -8 -8 -6 -6 -6 -6 -6 -5 -5 -5 -5 -5 -5 -5 -4 -4 -4 -4 -4 -4 -3 ------- Run | Yrd Mat Sub Mat Sto Rec Fac Low Low Zio Dee Pro Fac Was Fac Upp Upp War Pro Fac Ext Cet Arc Hub Res Slots Evolved 14 | . . . 4 . . 4 . . . . . 2 . . . . . . 2 . . . . 2 Power 1 | . . . . . . 1 . . . . . . . . . . . . . . . . . . Propulsion 3 | . . . 2 . . . . . . . . . . . . . . . . . . . . 1 Utility 9 | . . . 2 . . 2 . . . . . 2 . . . . . . 2 . . . . 1 Weapon 1 | . . . . . . 1 . . . . . . . . . . . . . . . . . . Parts Attached 237 | 2 9 14 32 21 11 28 . 6 5 15 6 19 2 7 4 2 4 1 1 3 . . 4 41 Power 21 | . 1 4 3 4 1 1 . 1 . 3 1 2 . . . . . . . . . . . . Engine 14 | . 1 4 3 3 1 . . . . . 1 1 . . . . . . . . . . . . Core 3 | . . . . 1 . 1 . 1 . . . . . . . . . . . . . . . . Reactor 4 | . . . . . . . . . . 3 . 1 . . . . . . . . . . . . Propulsion 28 | . 2 3 8 9 3 . . . . . . . . . . . . . . . . . . 3 Treads 26 | . 2 3 8 8 3 . . . . . . . . . . . . . . . . . . 2 Leg 1 | . . . . . . . . . . . . . . . . . . . . . . . . 1 Wheel . | . . . . . . . . . . . . . . . . . . . . . . . . . Hover 1 | . . . . 1 . . . . . . . . . . . . . . . . . . . . Flight . | . . . . . . . . . . . . . . . . . . . . . . . . . Utility 116 | 1 3 2 10 3 6 17 . 3 2 8 4 11 2 4 4 2 3 . . 2 . . 4 25 Device 59 | 1 2 . 3 1 2 10 . 2 1 3 1 8 . 4 2 1 3 . . 1 . . 2 12 Storage 9 | . 1 . . 1 1 2 . . . 1 . 1 . . . . . . . . . . . 2 Processor 14 | . . . 1 . 1 1 . 1 . . . 2 . . 1 . . . . . . . . 7 Hackware . | . . . . . . . . . . . . . . . . . . . . . . . . . Protection 34 | . . 2 6 1 2 4 . . 1 4 3 . 2 . 1 1 . . . 1 . . 2 4 Artifact . | . . . . . . . . . . . . . . . . . . . . . . . . . Weapon 72 | 1 3 5 11 5 1 10 . 2 3 4 1 6 . 3 . . 1 1 1 1 . . . 13 Energy Gun 25 | . 2 1 7 1 . 3 . 1 . 4 . 1 . 1 . . 1 . 1 . . . . 2 Energy Cannon 11 | . . 2 . 1 . 1 . 1 . . . 4 . 1 . . . . . . . . . 1 Ballistic Gun 13 | 1 . 1 3 . . 2 . . . . 1 . . . . . . . . . . . . 5 Ballistic Cannon 5 | . . . . . . 1 . . . . . . . . . . . 1 . 1 . . . 2 Launcher 4 | . . 1 . 1 . . . . . . . . . 1 . . . . . . . . . 1 Special Weapon 6 | . . . . 1 . 2 . . 2 . . . . . . . . . . . . . . 1 Impact Weapon 1 | . . . 1 . . . . . . . . . . . . . . . . . . . . . Slashing Weapon 3 | . . . . 1 1 1 . . . . . . . . . . . . . . . . . . Piercing Weapon 3 | . . . . . . . . . 1 . . 1 . . . . . . . . . . . 1 Special Melee Weapon 1 | . 1 . . . . . . . . . . . . . . . . . . . . . . . Unidentified Prototypes 45 | . 1 . 3 5 1 4 . 1 . 9 . 4 1 1 . . 3 . . . . . . 12 Parts Lost 53 | . 2 4 5 . 3 5 . . . 1 3 3 . . 2 . . . . . . . 4 21 Power 7 | . 1 . 2 . . 1 . . . . . 1 . . . . . . . . . . . 2 Propulsion 11 | . . 3 2 . . 1 . . . . . . . . . . . . . . . . . 5 Utility 24 | . 1 . 1 . 2 1 . . . 1 3 2 . . 1 . . . . . . . 3 9 Weapon 11 | . . 1 . . 1 2 . . . . . . . . 1 . . . . . . . 1 5 Highest Loss Streak 18 | . 1 2 3 . 1 1 . . . 1 3 3 . . 2 . . . . . . . 3 18 To Critical Strikes 2 | . . . . . . . . . . . . . . . 1 . . . . . . . . 1 Average Backups 17 | 6 10 14 11 13 17 20 16 17 20 19 19 19 19 18 18 19 20 20 19 18 19 20 19 18 Power . | 1 . . . . 1 . . . 1 . 1 . . . . 1 . . . . . . . . Propulsion 1 | 4 2 2 1 1 2 1 1 1 2 . . 1 . 1 1 1 2 1 . 1 1 1 1 . Utility 7 | . 2 3 3 4 7 10 7 8 10 10 11 9 10 10 10 12 12 12 12 9 9 10 9 9 Weapon 5 | 1 4 5 3 5 4 5 4 3 4 4 4 7 6 4 3 3 4 4 4 5 7 8 7 5 Tool/Special . | . . . . . . . . . . . . . . . . . . . . . . . . . Unused Backups 136 | 5 8 6 3 5 20 24 7 4 . 12 2 6 1 4 1 2 2 2 . 4 2 . . 16 Power 10 | 1 1 . 1 . 1 2 . . . 1 . . . . . 1 1 . . . . . . 1 Propulsion 43 | 2 4 3 . 1 8 7 1 1 . 5 . 3 1 . 1 1 . 2 . . 1 . . 2 Utility 31 | 1 3 . . 3 . 4 1 1 . 6 . 1 . 1 . . 1 . . 4 1 . . 4 Weapon 50 | 1 . 3 1 1 11 10 5 2 . . 2 2 . 3 . . . . . . . . . 9 Tool/Special 2 | . . . 1 . . 1 . . . . . . . . . . . . . . . . . . Average Slot Usage (%) 74 | . 98 99 88 100 75 59 58 60 68 66 65 69 61 61 61 66 63 62 66 62 60 60 62 61 Engine 4 | . 14 13 8 9 6 5 . . . . . 1 . 4 . 5 3 . . . . . . . Core 1 | . . . . . 1 . 6 8 12 3 . . 5 1 4 . . . . 2 . . . . Reactor 2 | . . . . . . . . . . 7 11 7 . . . . 1 5 5 2 5 5 5 3 Treads 11 | . 22 27 26 36 20 2 . 4 . . . . 2 . . . . . 4 5 5 5 5 3 Leg 1 | . 5 . . . . 1 6 1 6 5 6 5 2 . . . 1 5 . . . . . . Device 18 | . 12 13 18 16 13 21 26 25 23 17 17 20 21 22 22 23 22 22 27 27 25 25 28 19 Storage 7 | . 14 14 9 9 9 6 6 6 6 6 6 5 5 5 5 5 5 5 5 5 5 5 5 3 Processor 2 | . . . . . . . . . . . . 6 5 5 5 5 5 5 5 5 5 5 5 9 Protection 4 | . . . 8 10 3 4 . . 1 6 6 4 5 4 4 3 5 5 5 4 5 5 5 8 Energy Gun 4 | . 17 5 12 15 9 2 5 1 . 4 1 . . . . . . . . . . . . . Energy Cannon 4 | . . 16 2 . . 1 1 1 6 6 5 5 5 5 7 11 8 5 5 . . . . 1 Ballistic Gun 2 | . 9 6 2 . . 4 . . . . 1 . . . . . . . . . . . . . Ballistic Cannon 1 | . . . . . . . . 3 . . . . . . . . . 1 4 7 5 5 5 2 Special Weapon 1 | . . . . 1 . . . . 6 . . 3 . . . . 4 . . 1 5 5 . 3 Slashing Weapon 1 | . . . . 1 5 2 2 6 . . . . . . . . . . . . . . . . Piercing Weapon 1 | . . . . . . . . . 5 4 6 4 1 4 3 5 . 2 5 1 . . . . Peak Build Rating 187 | 7 13 17 34 34 40 67 68 85 87 112 116 126 114 118 123 117 114 124 139 148 149 149 159 187 Average Rating 76 | 6 10 13 23 28 32 56 64 67 84 98 105 114 109 113 114 113 110 117 132 142 146 149 152 168 On Entrance 87 | 6 7 13 17 32 25 39 67 65 85 86 112 107 111 114 115 117 112 114 124 131 146 149 149 146 Naked Turns . | . . . . . . . . . . . . . . . . . . . . . . . . . Heaviest Build 142 | 15 32 44 53 53 102 111 67 87 103 108 87 102 87 82 82 79 91 101 112 131 115 115 119 142 Greatest Support 173 | 20 40 40 80 80 89 89 34 49 49 150 150 150 150 150 150 118 118 118 115 115 124 124 124 173 Greatest Overweight (x) 38 | . 1 1 1 . 2 2 1 2 2 2 . . . . . . . . . 1 . 38 . 1 Average Overweight (x) . | . . . . . . . 1 1 1 . . . . . . . . . . . . 10 . . Largest Inventory Capacity 25 | 8 15 15 15 15 25 25 20 20 20 20 20 20 20 20 20 20 20 20 20 20 20 20 20 20 Average Capacity 19 | 8 14 15 15 15 22 22 20 20 20 20 20 20 20 20 20 20 20 20 20 20 20 20 20 19 Most Carried 25 | 7 15 15 15 15 25 25 20 20 20 20 20 20 20 20 20 20 20 20 20 20 20 20 20 20 Average Carried 17 | 6 10 14 14 14 18 21 16 17 20 19 19 19 19 19 19 19 19 19 19 19 19 20 19 18 Final Capacity 25 | 8 15 15 15 15 25 20 20 20 20 20 20 20 20 20 20 20 20 20 20 20 20 20 20 5 Final Carried 22 | 7 15 15 15 15 22 20 15 20 20 20 20 20 20 19 19 20 20 19 19 20 20 20 18 5 Scrap Engine Consumption 241 | . . . . . 50 44 10 7 1 21 6 9 8 8 5 4 8 5 2 5 7 1 . 40 Constructs Created 5 | . . . . . 3 1 . . . . . 1 . . . . . . . . . . . . Constructs Modified 109 | . . . . . 20 20 4 4 . 12 3 3 3 5 2 2 4 1 1 3 5 . . 17 Class Distribution -------------------- 44% | Construct 17% | Scavenger-Mutant 16% | Mutant 11% | Commander-Construct 3% | Infiltrator-Construct 3% | Scavenger-Construct Dominant Class ---------------- Mutant | -10/Materials Mutant | -10/Subcaves Scavenger-Mutant | -8/Materials Scavenger-Mutant | -8/Storage Scavenger-Mutant | -8/Recycling Construct | -6/Factory Construct | -6/Lower Caves Construct | -6/Lower Caves Construct | -6/Zion Construct | -6/Deep Caves Construct | -5/Proximity Caves Construct | -5/Factory Construct | -5/Waste Construct | -5/Factory Construct | -5/Upper Caves Construct | -5/Upper Caves Construct | -5/Warlord Construct | -4/Proximity Caves Infiltrator-Construct | -4/Factory Construct | -4/Extension Commander-Construct | -4/Cetus Commander-Construct | -4/Archives Construct | -4/Hub_04(d) Construct | -3/Research Resources | -11 -10 -10 -8 -8 -8 -6 -6 -6 -6 -6 -5 -5 -5 -5 -5 -5 -5 -4 -4 -4 -4 -4 -4 -3 ----------- Run | Yrd Mat Sub Mat Sto Rec Fac Low Low Zio Dee Pro Fac Was Fac Upp Upp War Pro Fac Ext Cet Arc Hub Res Matter Collected 8849 | 244 366 720 656 632 326 665 64 382 30 474 135 542 459 202 429 57 111 170 . 542 42 21 105 1475 Remotely . | . . . . . . . . . . . . . . . . . . . . . . . . . Salvage Created 14490 | 127 732 727 1109 1275 423 703 . 429 . 496 83 1057 1631 225 650 142 134 252 . 1443 402 24 606 1820 Parts 641 | 6 43 63 50 68 24 49 . 16 . 31 13 53 13 12 22 2 2 20 . 54 19 3 20 58 Haulers Intercepted 8 | . 2 . 3 3 . . . . . . . . . . . . . . . . . . . . Recyclers Shooed 11 | 1 7 . . 2 . . . . . . . . . . . . . . . 1 . . . . Parts Field Recycled . | . . . . . . . . . . . . . . . . . . . . . . . . . Retrieved Matter . | . . . . . . . . . . . . . . . . . . . . . . . . . Parts Self-Destructed 50 | . . 16 . . . . . 1 . . 6 . . . 14 . . 13 . . . . . . Prevented 4 | . . . . . . . . . . . . . . . 2 2 . . . . . . . . Kills | -11 -10 -10 -8 -8 -8 -6 -6 -6 -6 -6 -5 -5 -5 -5 -5 -5 -5 -4 -4 -4 -4 -4 -4 -3 ------- Run | Yrd Mat Sub Mat Sto Rec Fac Low Low Zio Dee Pro Fac Was Fac Upp Upp War Pro Fac Ext Cet Arc Hub Res Combat Hostiles Destroyed 254 | . 17 20 21 24 11 16 . 1 . 10 3 29 6 4 16 1 2 8 . 16 6 . 12 31 Melee 2 | . . . 1 . . . . . . . . 1 . . . . . . . . . . . . Guns 78 | . 17 2 15 20 11 9 . . . . 1 . . . . . . . . . . . . 3 Cannons 100 | . . 17 2 . . 1 . 1 . 7 . 13 . 3 4 1 2 1 . 14 6 . 8 20 AOE 60 | . . . . 4 . 6 . . . 2 1 15 6 . 9 . . 6 . . . . 4 7 Classes Destroyed 30 | 2 5 2 3 5 . 1 . 2 . 2 2 2 1 . . . 1 . . . . . . 2 Worker 10 | . . . . 1 . 1 . . . . . 2 . . . . . . . . . . 5 1 Builder 7 | . . . . 1 . 1 . . . . . 2 . 1 . . . . . 1 . . 1 . Tunneler 3 | 1 1 . . . . 1 . . . . . . . . . . . . . . . . . . Hauler 8 | . 2 . 3 3 . . . . . . . . . . . . . . . . . . . . Recycler 5 | 1 . . . . . 1 . . . . . 1 . . . . . . . 1 . . . 1 Mechanic 2 | . . . . 2 . . . . . . . . . . . . . . . . . . . . Operator 3 | . 1 . . 1 . . . . . . . . . . . . . . . . . 1 . . Drone 2 | . . . . . . . . . . . 2 . . . . . . . . . . . . . Watcher 9 | . 3 . . 1 . 1 . . . . . . . . . . . . . 3 . . 1 . Swarmer 36 | . 6 5 . . . 4 . . . . . 5 . . 5 . . 5 . . . . . 6 Saboteur 1 | . . . . . . . . . . . . 1 . . . . . . . . . . . . Grunt 74 | . 11 . 14 11 . 5 . . . . . 5 . 1 8 . . 1 . 3 . . 5 10 Brawler 2 | . . . . 2 . . . . . . . . . . . . . . . . . . . . Duelist 4 | . . . 1 1 . . . . . . . . . . . . . . . 2 . . . . Protector 4 | . . . . 1 . . . . . . . 2 . . . . 1 . . . . . . . Sentry 31 | . . . 4 8 2 3 . . . . . 2 . . 1 . . 1 . 6 . . 1 3 Demolisher 2 | . . . . . . . . . . . . . . . . . . . . . . . . 2 Specialist 6 | . . . . . . . . . . . . 3 . . . . . . . . . . 3 . Hunter 15 | . . . 2 1 . 1 . . . . . 5 . 1 . . . . . 2 . . 1 2 Programmer 15 | . . . . . . 3 . . . . . 6 . 2 1 . . . . 1 . . 2 . Behemoth 6 | . . . . . . . . . . . 1 . . . 1 . . 1 . 2 . . . 1 Compactor 6 | . . . . . . . . . . . . . 6 . . . . . . . . . . . Cetus Guard 6 | . . . . . . . . . . . . . . . . . . . . . 6 . . . Enhanced Grunt 2 | . . . . . . . . . . . . . . . . . . . . . . . 2 . Striker 7 | . . . . . . . . . . . . . . . . . 1 . . . . . . 6 Executioner 1 | . . . . . . . . . . . . . . . . . . . . . . . . 1 Artisan 3 | . . 3 . . . . . . . . . . . . . . . . . . . . . . Subdweller 24 | . . 15 . . 9 . . . . . . . . . . . . . . . . . . . Z-Light 6 | . . . . . . . . . . 6 . . . . . . . . . . . . . . Samaritan 2 | . . . . . . . . 2 . . . . . . . . . . . . . . . . Assembled 3 | . . . . . . . . . . 3 . . . . . . . . . . . . . . Surgeon 2 | . . . . . . . . . . . . . 2 . . . . . . . . . . . Wasp 5 | . . . . . . . . . . . . . 5 . . . . . . . . . . . Thug 6 | . . . . . . . . . . . . . 4 2 . . . . . . . . . . Butcher 1 | . . . . . . . . . . . . . 1 . . . . . . . . . . . Mutant 2 | . . . . . . . . 1 . . . . . . . 1 . . . . . . . . Best Kill Streak 20 | 2 5 3 4 5 2 4 . 1 . 5 1 20 6 2 6 1 2 4 . 3 4 1 8 6 Combat Bots Only 15 | . 5 3 4 4 2 4 . 1 . 5 1 15 6 2 6 1 2 4 . 2 4 . 6 6 Max Kills in Single Turn 12 | 1 2 1 1 5 1 3 . 1 . 2 1 7 12 2 3 1 1 4 . 1 1 1 4 2 Gunslinging . | . . . . . . . . . . . . . . . . . . . . . . . . . Exploded 6 | . . . . 4 . 3 . . . 2 1 6 1 . 3 . . 4 . . . . 2 2 Melee 1 | . . . 1 . . . . . . . . 1 . . . . . . . . . . . . Uniques/NPCs Destroyed 1 | . . . . . . . . . . 1 . . . . . . . . . . . . . . Z-Imprinter (-6/Deep Caves) Combat | -11 -10 -10 -8 -8 -8 -6 -6 -6 -6 -6 -5 -5 -5 -5 -5 -5 -5 -4 -4 -4 -4 -4 -4 -3 -------- Run | Yrd Mat Sub Mat Sto Rec Fac Low Low Zio Dee Pro Fac Was Fac Upp Upp War Pro Fac Ext Cet Arc Hub Res Hostile Shots Fired 1734 | . 58 64 101 62 21 271 . 3 . 33 51 152 . 64 79 . . 19 . 82 37 . 170 467 Missed 521 | . 14 15 32 14 6 73 . 1 . 8 14 49 . 19 25 . . 2 . 25 19 . 53 152 Hits 1213 | . 44 49 69 48 15 198 . 2 . 25 37 103 . 45 54 . . 17 . 57 18 . 117 315 Melee 23 | . . . . . . . . . . . . . . . . . . . . . . . . 23 Projectile 1190 | . 44 49 69 48 15 198 . 2 . 25 37 103 . 45 54 . . 17 . 57 18 . 117 292 AOE 8 | . . 1 . . . 1 . . . . . 2 . . . . . . . . . . . 4 Critical Strikes 60 | . . 1 2 3 1 3 . . . . 3 3 . 3 6 . . 3 . 2 4 . 7 19 Actively Blocked 2 | . . . . . . . . . . . 2 . . . . . . . . . . . . . Damage Taken 24348 | . 631 869 999 747 469 2474 . 109 . 548 925 1706 199 1059 1104 . . 441 . 1063 335 24 2406 8240 Core 2395 | . 106 77 134 66 47 238 . 12 . 22 . 161 4 90 61 . . . . 81 . . 172 1124 Absorbed by Shields 1249 | . . . . . . . . . . . . 495 73 8 . . . . . 339 123 . . 211 Reduced by Siege Mode 100 | . . . . . . . . . . . . . . . . . . . . . 7 . 93 . Redirected to Shielding 165 | . . . . . . . . . . . 124 41 . . . . . . . . . . . . Ignored by Resistances 780 | . . . 40 78 22 134 . . . 148 80 18 . . . . . . . . . . 225 35 Regen/Repaired (Parts) 7573 | . . . . . . 888 . 131 75 348 34 550 869 195 506 214 279 . . 377 436 36 . 2635 Core Remaining (%) 65 | 100 . 26 . . 55 . . . . . 68 . . . . . . 68 . . . . 78 . Volleys Fired 790 | 4 63 56 57 47 21 95 . 7 9 42 7 68 8 23 26 3 11 6 3 69 15 11 41 98 Largest 2 | 2 2 2 2 2 2 2 . 1 1 2 2 1 1 1 1 1 1 2 1 2 1 1 1 2 Hottest 269 | 40 112 160 160 160 160 172 . 194 7 269 212 97 145 145 145 96 65 115 51 255 204 204 204 237 Shots Fired 1116 | 8 127 98 106 91 49 118 1 6 9 49 12 67 9 21 26 7 11 7 3 85 15 11 40 140 Gun 557 | 8 127 32 92 90 49 103 . . . 16 5 . . . . . . . . . . . . 35 Cannon 467 | . . 65 14 . . 11 1 6 . 30 6 61 1 21 19 7 4 5 3 64 12 7 38 92 Launcher 39 | . . 1 . 1 . 4 . . . 1 1 4 8 . 7 . . 2 . . . . 2 8 Special 53 | . . . . . . . . . 9 2 . 2 . . . . 7 . . 21 3 4 . 5 Kinetic 411 | 8 60 16 20 . . 60 . 6 . . . . . . 7 . . . 3 64 12 7 38 110 Thermal 502 | . 67 82 86 90 49 45 . . . 16 10 . 1 18 12 4 . 2 . . . . . 20 Explosive 21 | . . . . 1 . 2 . . . 1 1 4 8 . . . . 2 . . . . 2 . Electromagnetic 60 | . . . . . . 11 1 . . 30 . . . 3 7 3 . . . . . . . 5 Entropic 7 | . . . . . . . . . . . . . . . . . 4 3 . . . . . . Phasic 62 | . . . . . . . . . . . 1 61 . . . . . . . . . . . . Robot Hit Streak 28 | 7 8 8 15 17 28 14 . 7 6 5 1 8 11 5 4 7 10 1 . 9 9 7 10 13 Robot Miss Streak 13 | . 4 3 3 3 5 4 . . 1 4 10 10 12 13 1 . 2 4 . 3 1 1 2 3 Penetration Max 1 | . . . . . . . . . . . . . . . . . . . . . . 1 . 1 Secondary Targets 5 | . 1 . 1 3 . . . . . . . . . . . . . . . . . . . . Max Gunslinging Chain 1 | . 1 . 1 1 . . . . . . . . . . . . . . . . . . . . Shots Hit Robots 748 | 7 72 50 84 80 39 88 . 11 7 22 10 31 8 10 18 3 8 3 . 61 12 10 23 91 Core Hits 703 | 3 30 27 49 82 30 57 . 7 . 15 4 111 92 19 22 2 2 20 . 20 6 2 48 55 Critical Kills 9 | . . 1 2 . . . . . . . . . . . . . . . . . . . . 6 Critical Parts Destroyed 10 | . . . 1 . . 2 . . . . . . . . . . . . . . . . . 7 Critical Strikes 43 | . 2 7 4 . . 2 . . . . 1 . . . . . . . . 8 1 1 2 15 Burn 7 | . 2 4 1 . . . . . . . . . . . . . . . . . . . . . Meltdown 2 | . . 1 1 . . . . . . . . . . . . . . . . . . . . . Destroy 19 | . . 2 . . . 2 . . . . . . . . . . . . . . . . . 15 Blast 12 | . . . . . . . . . . . . . . . . . . . . 8 1 1 2 . Smash 2 | . . . 2 . . . . . . . . . . . . . . . . . . . . . Impale 1 | . . . . . . . . . . . 1 . . . . . . . . . . . . . Melee Attacks 89 | . 1 . 7 4 5 3 4 11 1 . 12 19 . 11 2 . . 1 2 3 . . . 3 Impact 7 | . . . 7 . . . . . . . . . . . . . . . . . . . . . Slashing 27 | . . . . 4 5 3 4 11 . . . . . . . . . . . . . . . . Piercing 54 | . . . . . . . . . 1 . 12 19 . 11 2 . . 1 2 3 . . . 3 Sneak Attacks 5 | . 1 . 1 . . . . . . . . . . 1 . . . . . 1 . . . 1 Combat Hostiles 1 | . . . 1 . . . . . . . . . . . . . . . . . . . . . Follow-up Attacks . | . . . . . . . . . . . . . . . . . . . . . . . . . Damage Inflicted 45126 | 82 1141 1281 1869 2396 1042 2833 . 630 . 739 393 5313 5181 1222 1785 216 240 521 . 4505 1106 805 4307 7519 Guns 8671 | 82 1083 383 1467 2021 979 1969 . . . . 69 . . . . . . . . . . . . 618 Cannons 19697 | . . 779 145 . . 78 . 304 . 661 . 1653 92 621 753 216 240 80 . 4444 1106 805 2557 5163 Explosions 15493 | . . 119 . 366 . 786 . . . 78 90 3578 5089 519 1032 . . 441 . . . . 1750 1645 Melee 1167 | . . . 255 . 63 . . 326 . . 234 82 . 82 . . . . . 49 . . . 76 Ramming 98 | . 58 . 2 9 . . . . . . . . . . . . . . . 12 . . . 17 Kinetic 18719 | 82 472 280 245 . . 1150 . 304 . . . . . . 1032 . . . . 4444 1106 805 2557 6242 Thermal 9397 | . 611 1001 1367 2021 979 1042 . . . . 69 . 92 509 297 . . . . . . . 225 1184 Explosive 11926 | . . . . 366 . 517 . . . 78 90 3578 5089 242 . . . 441 . . . . 1525 . Electromagnetic 1846 | . . . . . . 124 . . . 661 . . . 389 456 216 . . . . . . . . Impact 255 | . . . 255 . . . . . . . . . . . . . . . . . . . . . Slashing 389 | . . . . . 63 . . 326 . . . . . . . . . . . . . . . . Piercing 523 | . . . . . . . . . . . 234 82 . 82 . . . . . 49 . . . 76 Entropic 320 | . . . . . . . . . . . . . . . . . 240 80 . . . . . . Phasic 1653 | . . . . . . . . . . . . 1653 . . . . . . . . . . . . Highest Corruption 15 | . 4 4 4 4 4 9 9 10 10 . . 8 8 15 15 15 11 . . . . . 5 6 Average Corruption 5 | . 3 4 3 4 4 5 9 9 10 . . 6 8 9 15 12 11 . . . . . 2 5 Corruption Purged 4 | . . . . . . . . . . . . . . . . 4 . . . . . . . . Corruption Blocked . | . . . . . . . . . . . . . . . . . . . . . . . . . Effects 533 | . 21 86 11 33 95 35 24 37 3 . . 14 16 27 30 31 2 . . . . . 2 66 Message Errors 120 | . 4 21 1 13 24 4 3 10 2 . . 6 2 6 7 4 1 . . . . . . 12 Matter Fused 150 | . 9 27 3 8 20 14 9 10 . . . 3 4 4 10 4 1 . . . . . . 24 Heat Flow Errors 59 | . 3 10 2 4 8 6 1 5 . . . 1 3 2 2 5 . . . . . . . 7 Energy Discharges 55 | . . 10 1 . 9 4 4 3 . . . 1 2 5 3 5 . . . . . . . 8 Parts Rejected 6 | . . . . . . 1 . . . . . 1 1 2 . . . . . . . . 1 . Parts Fused 2 | . . . . . . . . . . . . 1 . . . 1 . . . . . . . . Data Loss (minor) 64 | . 3 11 3 3 11 2 4 4 1 . . . 3 3 4 5 . . . . . . . 7 Data Loss (major) 22 | . 1 2 . 1 7 . 1 3 . . . . . 1 . 2 . . . . . . . 4 Misfires 23 | . 1 3 1 1 9 1 1 . . . . . 1 . . 4 . . . . . . . 1 Alerts 18 | . . 1 . . 7 . 1 1 . . . . . 2 4 1 . . . . . . . 1 Weapon Failures 14 | . . 1 . 3 . 3 . 1 . . . 1 . 2 . . . . . . . . 1 2 Overload Shots . | . . . . . . . . . . . . . . . . . . . . . . . . . Overflow Damage 2796 | . . 13 38 . . 32 . 79 . 8 24 196 . 144 24 42 . . . 847 65 110 499 675 Projectiles 2442 | . . 13 . . . . . 13 . 8 . 155 . 127 24 42 . . . 828 65 110 460 597 Explosions 185 | . . . . . . 32 . . . . 24 41 . 17 . . . . . . . . 39 32 Melee 169 | . . . 38 . . . . 66 . . . . . . . . . . . 19 . . . 46 Knockbacks 57 | . . . 1 . . . . . . . . . . . . . . . . 14 . . 15 27 Impact 2 | . . . 1 . . . . . . . . . . . . . . . . . . . . 1 Kinetic 49 | . . . . . . . . . . . . . . . . . . . . 13 . . 12 24 Secondary 6 | . . . . . . . . . . . . . . . . . . . . 1 . . 3 2 Self-Inflicted Damage 1556 | . . . . 85 153 313 . . . . 24 166 278 68 166 . . 105 . . . . 198 . Shots 54 | . . . . 4 2 7 . . . . 1 7 14 3 4 . . 5 . . . . 7 . Rammed 12 | . 7 . 1 2 . . . . . . . . . . . . . . . 1 . . . 1 Targets Rammed 14 | . 9 . 1 2 . . . . . . . . . . . . . . . 1 . . . 1 Kicked 2 | . 2 . . . . . . . . . . . . . . . . . . . . . . . Crushed . | . . . . . . . . . . . . . . . . . . . . . . . . . Highest Temperature 457 | . 204 255 225 319 258 221 54 457 . 353 222 357 223 287 292 240 15 44 . 375 303 206 336 272 Average Temperature 86 | . 57 67 73 83 55 84 29 144 . 141 55 95 87 111 99 71 9 23 . 117 131 116 110 84 Received Heat Transfer 4046 | . 213 132 540 360 66 555 . . . 236 144 116 . 18 466 . . 27 . 121 . . 565 487 Effects 4 | . . . . . . . . 1 . . . 1 . . . 1 . . . . . . 1 . Energy Bleed 1 | . . . . . . . . 1 . . . . . . . . . . . . . . . . Interference 2 | . . . . . . . . . . . . . . . . 1 . . . . . . 1 . Short Circuit 1 | . . . . . . . . . . . . 1 . . . . . . . . . . . . Siege Activations 10 | . . . . . . . . . . . . . . . . . . . . 5 2 . 3 . Total Turns 103 | . . . . . . . . . . . . . . . . . . . . 43 14 . 46 . Longest Duration 26 | . . . . . . . . . . . . . . . . . . . . 17 9 . 26 . Martial Activations . | . . . . . . . . . . . . . . . . . . . . . . . . . Shielding Activations . | . . . . . . . . . . . . . . . . . . . . . . . . . Robots Disrupted 3 | . . . . . . . . . . . . . . 2 . . . . . . . . . 1 Combat Hostiles 1 | . . . . . . . . . . . . . . . . . . . . . . . . 1 Robots Corrupted 6 | . . . 2 . . . . . . 1 . . . . 2 . . . . . . . 1 . Combat Hostiles 5 | . . . 2 . . . . . . 1 . . . . 2 . . . . . . . . . Parts Fried 19 | . . . 1 . . 1 . . . 9 . . . . 3 1 . . . 1 1 . 2 . Impact Corruptions 7 | . . . 2 . . . . . . . . . . . . . . . . 1 . . 4 . Robots Melted 4 | . . 1 1 1 . . . . . . . . . 1 . . . . . . . . . . Combat Hostiles 3 | . . 1 1 . . . . . . . . . . 1 . . . . . . . . . . Parts Melted 30 | . 4 6 2 11 5 . . . . . . . . 1 1 . . . . . . . . . Heat Transferred 15538 | . 1480 1850 3022 4432 2200 1295 . . . . 74 . 50 400 400 . . . . . . . 150 185 Parts Sabotaged . | . . . . . . . . . . . . . . . . . . . . . . . . . Parts Stolen . | . . . . . . . . . . . . . . . . . . . . . . . . . Parts Stripped . | . . . . . . . . . . . . . . . . . . . . . . . . . Power Chain Reactions 3 | . . . . . . 2 . . . . . . . . . . . . . . . . 1 . Alert | -11 -10 -10 -8 -8 -8 -6 -6 -6 -6 -6 -5 -5 -5 -5 -5 -5 -5 -4 -4 -4 -4 -4 -4 -3 ------- Run | Yrd Mat Sub Mat Sto Rec Fac Low Low Zio Dee Pro Fac Was Fac Upp Upp War Pro Fac Ext Cet Arc Hub Res Maximum Alert Level 3 | . 1 . . 1 . 1 . . . . . 3 1 2 . . . . . . 1 1 2 2 Low Security (%) 73 | 100 77 . 100 42 100 68 . . . . . 15 22 25 . . . . 100 100 19 94 28 66 Level 1 18 | . 22 . . 57 . 31 . . . . . 21 77 32 . . . . . . 80 5 4 21 Level 2 6 | . . . . . . . . . . . . 44 . 42 . . . . . . . . 67 11 Level 3 1 | . . . . . . . . . . . . 17 . . . . . . . . . . . . Level 4 . | . . . . . . . . . . . . . . . . . . . . . . . . . Level 5 . | . . . . . . . . . . . . . . . . . . . . . . . . . High Security . | . . . . . . . . . . . . . . . . . . . . . . . . . Max Security . | . . . . . . . . . . . . . . . . . . . . . . . . . Peak Influence 744 | 10 269 . 195 336 106 249 . . . . . 744 331 620 . . . . 19 173 343 232 610 582 Initial 600 | . . . 32 78 86 200 . . . . . 600 245 107 . . . . . . 81 106 . 304 Average 131 | 1 119 . 40 203 5 140 . . . . . 485 235 326 . . . . 1 52 239 47 350 180 Influence Increases 10282 | 10 552 140 650 894 239 1012 . 5 . . 40 1520 146 1059 385 20 25 180 29 691 382 206 984 1113 Destroy 0b10 Robot/C 4900 | . 340 100 420 540 40 380 . . . . 20 540 . 340 320 20 20 160 . 380 160 80 420 620 Destroy 0b10 Robot/NC 315 | 10 35 . 15 50 10 25 . 5 . . 10 35 . 25 . . 5 . . 25 10 5 40 10 Destroy Leader 950 | . 70 10 116 138 . 132 . . . . 10 90 . 76 50 . . 20 . 36 . . 62 140 Allied During Kill 641 | . . . . 11 2 9 . . . . . . . 123 . . . . . 62 170 85 179 . Trap Triggered on 0b10 10 | . . . . 10 . . . . . . . . . . . . . . . . . . . . Successful Hack 287 | . 31 . 14 38 30 26 . . . . . . . 25 . . . . 4 99 . . 8 12 Select Force Hacks 260 | . 60 . 60 . 90 . . . . . . . . . . . . . . . . . 50 . Disable Machine 465 | . . . . 60 45 45 . . . . . 15 . 180 . . . . . 15 30 30 15 30 Destroy Structure 1129 | . 1 . 10 17 22 105 . . . . . 150 146 290 . . . . 10 44 12 6 150 166 Advance Influence 800 | . . . . . . 200 . . . . . 600 . . . . . . . . . . . . Partial Spotted 15 | . . . . . . . . . . . . . . . . . . . . . . . 15 . Lose Combat Pursuer 510 | . 15 30 15 30 . 90 . . . . . 90 . . 15 . . . 15 30 . . 45 135 Influence Decreases 9710 | 10 408 221 527 857 462 782 230 5 . . 40 820 693 598 574 400 70 180 29 544 264 471 404 1121 Entered New Map 1789 | . . 70 31 108 137 . 86 . . . . . 455 46 228 82 45 . . . 66 159 . 276 Time Decay 6188 | 10 388 151 405 559 314 545 144 5 . . 40 490 238 342 326 318 25 180 29 436 198 252 158 635 Search Patrol Dispatched 150 | . . . . . . . . . . . . 150 . . . . . . . . . . . . Lost Part 421 | . 20 . 50 . 11 40 . . . . . 30 . . 20 . . . . . . . 40 210 Lost Ally 494 | . . . . 40 . 80 . . . . . . . 60 . . . . . 48 . 60 206 . Purge Threat 668 | . . . 41 150 . 117 . . . . . 150 . 150 . . . . . 60 . . . . Squads Dispatched 53 | . 5 . 8 3 . 4 . . . . . 11 . 5 . . . . 1 . . . 9 7 Investigation 15 | . 4 . 2 . . . . . . . . 1 . 2 . . . . . . . . 3 3 Extermination 9 | . . . . . . 3 . . . . . 2 . 2 . . . . 1 . . . 1 . Reinforcement 20 | . 1 . 4 1 . 1 . . . . . 3 . 1 . . . . . . . . 5 4 Assault 4 | . . . . 2 . . . . . . . 2 . . . . . . . . . . . . Garrison 5 | . . . 2 . . . . . . . . 3 . . . . . . . . . . . . Intercept . | . . . . . . . . . . . . . . . . . . . . . . . . . Searches Triggered 1 | . . . . . . . . . . . . 1 . . . . . . . . . . . . Construction Impeded 1 | . . . . . . . . . . . . 1 . . . . . . . . . . . . Haulers Reinforced 1 | . . . . . . 1 . . . . . . . . . . . . . . . . . . Active Scanning Responses . | . . . . . . . . . . . . . . . . . . . . . . . . . Cargo Convoy Interrupts 1 | . . . . . . . . . . . . 1 . . . . . . . . . . . . Stealth | -11 -10 -10 -8 -8 -8 -6 -6 -6 -6 -6 -5 -5 -5 -5 -5 -5 -5 -4 -4 -4 -4 -4 -4 -3 --------- Run | Yrd Mat Sub Mat Sto Rec Fac Low Low Zio Dee Pro Fac Was Fac Upp Upp War Pro Fac Ext Cet Arc Hub Res Distress Signals 22 | . . . 2 2 2 . . . . . . 1 . . . . 1 . 1 1 2 . 5 5 Communications Jammed 62 | . . . . . . . . . . . . . . . . . . . . . . . 60 2 Distress Signals 61 | . . . . . . . . . . . . . . . . . . . . . . . 59 2 Times Spotted 419 | . 24 20 28 33 10 28 . 1 . 10 6 44 6 14 16 1 9 8 5 26 10 3 40 77 Peak Tracking Total 26 | . 5 3 4 4 1 5 . 1 . 6 2 15 4 3 6 1 7 4 4 3 5 2 11 26 Tactical Retreats 23 | . 1 1 1 1 1 4 . . . . . 4 . . 1 . . . 1 2 . . 3 3 Traps | -11 -10 -10 -8 -8 -8 -6 -6 -6 -6 -6 -5 -5 -5 -5 -5 -5 -5 -4 -4 -4 -4 -4 -4 -3 ------- Run | Yrd Mat Sub Mat Sto Rec Fac Low Low Zio Dee Pro Fac Was Fac Upp Upp War Pro Fac Ext Cet Arc Hub Res Traps Triggered 17 | . 6 . 2 . . 2 . 2 . . . 2 . . . . . . . 2 . . . 1 Indirectly . | . . . . . . . . . . . . . . . . . . . . . . . . . Trap Hack Attempts 8 | . 8 . . . . . . . . . . . . . . . . . . . . . . . Triggered . | . . . . . . . . . . . . . . . . . . . . . . . . . Disarmed 1 | . 1 . . . . . . . . . . . . . . . . . . . . . . . Reprogrammed 4 | . . . . 4 . . . . . . . . . . . . . . . . . . . . Reused 1 | . . . . 1 . . . . . . . . . . . . . . . . . . . . Traps Extracted . | . . . . . . . . . . . . . . . . . . . . . . . . . Installed . | . . . . . . . . . . . . . . . . . . . . . . . . . Triggered 1 | . . . . 1 . . . . . . . . . . . . . . . . . . . . Machines | -11 -10 -10 -8 -8 -8 -6 -6 -6 -6 -6 -5 -5 -5 -5 -5 -5 -5 -4 -4 -4 -4 -4 -4 -3 ---------- Run | Yrd Mat Sub Mat Sto Rec Fac Low Low Zio Dee Pro Fac Was Fac Upp Upp War Pro Fac Ext Cet Arc Hub Res Machines Disabled 39 | . . 2 . 4 3 3 . 1 3 1 . 1 . 12 . . 1 . . 1 2 2 1 2 Max in Single Turn 3 | . . 1 . 1 3 3 . 1 1 . . 1 . 2 . . 1 . . 1 2 . 1 1 Garrison Access 1 | . . . . . . . . . . . . . . . . . . . . . . . . 1 Network Hub 1 | . . . . . . . . . . . . . . . . . . . . . . . 1 . Machines Repaired . | . . . . . . . . . . . . . . . . . . . . . . . . . Machines Dismantled 5 | . . . . 2 . . . . 3 . . . . . . . . . . . . . . . Machines Sabotaged 1 | . . . . . . . . . . . . . . . . . . . . . . . 1 . Overloaded Fab Kills . | . . . . . . . . . . . . . . . . . . . . . . . . . Hacking | -11 -10 -10 -8 -8 -8 -6 -6 -6 -6 -6 -5 -5 -5 -5 -5 -5 -5 -4 -4 -4 -4 -4 -4 -3 --------- Run | Yrd Mat Sub Mat Sto Rec Fac Low Low Zio Dee Pro Fac Was Fac Upp Upp War Pro Fac Ext Cet Arc Hub Res Machines Accessed 105 | . 7 2 7 12 12 8 3 1 . . . 9 . 10 1 . 3 . 3 14 . . 4 9 Terminals 59 | . 5 . 5 10 6 6 . . . . . 1 . 5 . . . . 1 13 . . 4 3 Fabricators 4 | . . . . . . 1 . . . . . 1 . . . . . . 1 . . . . 1 Repair Stations 5 | . . . . . . . . . . . . 3 . . . . . . . 1 . . . 1 Recycling Units 22 | . 2 . 2 2 5 1 . . . . . 2 . 5 . . . . 1 . . . . 2 Scanalyzers 1 | . . . . . . . . . . . . 1 . . . . . . . . . . . . Garrison Access 3 | . . . . . . . . . . . . 1 . . . . . . . . . . . 2 Total Hacks 273 | . 22 5 28 37 36 24 6 1 . . . 15 . 19 1 . 7 . 3 33 . . 14 22 Successful 141 | . 12 5 14 20 21 12 6 1 . . . 6 . 9 1 . 7 . 2 15 . . 7 3 Failed 131 | . 10 . 14 16 15 12 . . . . . 9 . 10 . . . . 1 18 . . 7 19 Catastrophic 22 | . 1 . 2 1 . 2 . . . . . 2 . 2 . . . . . 2 . . 2 8 Database Lockouts 1 | . . . . 1 . . . . . . . . . . . . . . . . . . . . Manual 132 | . 15 . 23 17 23 13 . . 1 . . 1 . 7 . . . . . 16 1 . 11 4 Terminals 173 | . 17 . 23 34 18 20 . . . . . 2 . 11 . . . . 1 28 . . 14 5 Fabricators 5 | . . . . . . 2 . . . . . 1 . . . . . . 1 . . . . 1 Repair Stations 13 | . . . . . . . . . . . . 4 . . . . . . . 5 . . . 4 Recycling Units 50 | . 5 . 5 3 16 2 . . . . . 3 . 8 . . . . 1 . . . . 7 Scanalyzers 2 | . . . . . . . . . . . . 2 . . . . . . . . . . . . Garrison Access 8 | . . . . . . . . . . . . 3 . . . . . . . . . . . 5 Terminal Hacks 62 | . 2 5 3 11 4 6 6 1 . . . 1 . 4 1 . 7 . 1 7 . . 3 . Record 9 | . . 4 . . . 1 4 . . . . . . . . . . . . . . . . . Part Schematic 2 | . . . . 1 . 1 . . . . . . . . . . . . . . . . . . Robot Analysis 4 | . 2 . 1 1 . . . . . . . . . . . . . . . . . . . . Prototype ID Bank 7 | . . . . 2 . . . . . . . . . . . . 5 . . . . . . . Open Door 14 | . . . . 1 . . 2 1 . . . . . . 1 . 2 . 1 6 . . . . Level Access Points 1 | . . . . . . . . . . . . . . . . . . . . . . . 1 . Branch Access Points 1 | . . . . . . . . . . . . . . 1 . . . . . . . . . . Terminal Index 2 | . . . . . . . . . . . . . . 1 . . . . . . . . 1 . Alert Level 3 | . . . . 1 . 1 . . . . . . . 1 . . . . . . . . . . Unreport Threat 6 | . . . 1 1 . 1 . . . . . 1 . 1 . . . . . 1 . . . . Locate Traps 6 | . . . 1 2 . 2 . . . . . . . . . . . . . . . . 1 . Reprogram Traps 1 | . . . . 1 . . . . . . . . . . . . . . . . . . . . Hauler Manifests 1 | . . . . 1 . . . . . . . . . . . . . . . . . . . . Zone Layout 2 | . . . . . 2 . . . . . . . . . . . . . . . . . . . Proto ID Catalog 1 | . . 1 . . . . . . . . . . . . . . . . . . . . . . Release Object 2 | . . . . . 2 . . . . . . . . . . . . . . . . . . . Fabricator Hacks 3 | . . . . . . 1 . . . . . 1 . . . . . . 1 . . . . . Network Status 3 | . . . . . . 1 . . . . . 1 . . . . . . 1 . . . . . Repair Station Hacks 3 | . . . . . . . . . . . . . . . . . . . . 2 . . . 1 Scan Component 2 | . . . . . . . . . . . . . . . . . . . . 1 . . . 1 Repair 1 | . . . . . . . . . . . . . . . . . . . . 1 . . . . Recycling Unit Hacks 16 | . 1 . 2 2 4 1 . . . . . 2 . 3 . . . . . . . . . 1 Retrieve Components 16 | . 1 . 2 2 4 1 . . . . . 2 . 3 . . . . . . . . . 1 Scanalyzer 1 | . . . . . . . . . . . . 1 . . . . . . . . . . . . Insert Component 1 | . . . . . . . . . . . . 1 . . . . . . . . . . . . Garrison Access Hacks 1 | . . . . . . . . . . . . . . . . . . . . . . . . 1 Seal Access 1 | . . . . . . . . . . . . . . . . . . . . . . . . 1 Unauthorized Hacks 55 | . 9 . 9 7 13 4 . . . . . 1 . 2 . . . . . 6 . . 4 . Terminals 44 | . 7 . 7 7 6 4 . . . . . 1 . 2 . . . . . 6 . . 4 . Track 1 | . . . 1 . . . . . . . . . . . . . . . . . . . . . Botnet 12 | . 1 . 2 1 1 1 . . . . . 1 . 2 . . . . . 1 . . 2 . Operators 2 | . 1 . . 1 . . . . . . . . . . . . . . . . . . . . Skim 27 | . 5 . 4 5 5 3 . . . . . . . . . . . . . 5 . . . . Sabotage 2 | . . . . . . . . . . . . . . . . . . . . . . . 2 . Fabricators . | . . . . . . . . . . . . . . . . . . . . . . . . . Repair Stations . | . . . . . . . . . . . . . . . . . . . . . . . . . Recycling Units 11 | . 2 . 2 . 7 . . . . . . . . . . . . . . . . . . . Monitor 1 | . . . . . 1 . . . . . . . . . . . . . . . . . . . Reject 1 | . . . . . 1 . . . . . . . . . . . . . . . . . . . Recyclers 1 | . . . . . 1 . . . . . . . . . . . . . . . . . . . Mask 1 | . . . . . 1 . . . . . . . . . . . . . . . . . . . Tunnel 7 | . 2 . 2 . 3 . . . . . . . . . . . . . . . . . . . Scanalyzers . | . . . . . . . . . . . . . . . . . . . . . . . . . Garrison Access . | . . . . . . . . . . . . . . . . . . . . . . . . . Data Cores Recovered . | . . . . . . . . . . . . . . . . . . . . . . . . . Used . | . . . . . . . . . . . . . . . . . . . . . . . . . Hacking Detections 70 | . 6 . 6 7 7 7 . . . . . 6 . 9 . . . . 2 10 . . 2 8 Full Trace Events 4 | . . . . . 1 . . . . . . . . 2 . . . . . . . . 1 . Feedback Events 1 | . . . . . . . . . . . . . . 1 . . . . . . . . . . Corruption 1 | . . . . . . . . . . . . . . 1 . . . . . . . . . . Feedback Blocked . | . . . . . . . . . . . . . . . . . . . . . . . . . Robot Schematics Acquired 4 | . . . . . . . . . 4 . . . . . . . . . . . . . . . Robots Built . | . . . . . . . . . . . . . . . . . . . . . . . . . Authchips . | . . . . . . . . . . . . . . . . . . . . . . . . . Time . | . . . . . . . . . . . . . . . . . . . . . . . . . Total Robot Build Rating . | . . . . . . . . . . . . . . . . . . . . . . . . . Part Schematics Acquired 17 | . . . . 1 . 1 . . 15 . . . . . . . . . . . . . . . Parts Built . | . . . . . . . . . . . . . . . . . . . . . . . . . Authchips . | . . . . . . . . . . . . . . . . . . . . . . . . . Time . | . . . . . . . . . . . . . . . . . . . . . . . . . Total Part Build Rating . | . . . . . . . . . . . . . . . . . . . . . . . . . Parts Repaired 1 | . . . . . . . . . . . . . . . . . . . . 1 . . . . Time 22 | . . . . . . . . . . . . . . . . . . . . 22 . . . . Parts Recycled . | . . . . . . . . . . . . . . . . . . . . . . . . . Recycled Matter . | . . . . . . . . . . . . . . . . . . . . . . . . . Retrieved Matter . | . . . . . . . . . . . . . . . . . . . . . . . . . Retrieved Components 58 | . 9 . 3 13 8 2 . . . . . 9 . 11 . . . . . . . . . 3 Parts Scanalyzed . | . . . . . . . . . . . . . . . . . . . . . . . . . Part Schematics Acquired . | . . . . . . . . . . . . . . . . . . . . . . . . . Parts Damaged . | . . . . . . . . . . . . . . . . . . . . . . . . . Bothacking | -11 -10 -10 -8 -8 -8 -6 -6 -6 -6 -6 -5 -5 -5 -5 -5 -5 -5 -4 -4 -4 -4 -4 -4 -3 ------------ Run | Yrd Mat Sub Mat Sto Rec Fac Low Low Zio Dee Pro Fac Was Fac Upp Upp War Pro Fac Ext Cet Arc Hub Res Used RIF Installer . | . . . . . . . . . . . . . . . . . . . . . . . . . Robots Hacked 27 | . 1 . . . . . . . 7 . . 1 . . . . 3 . . 5 3 3 . 4 Non-combat 9 | . 1 . . . . . . . 1 . . 1 . . . . 1 . . 2 . 2 . 1 Combat 18 | . . . . . . . . . 6 . . . . . . . 2 . . 3 3 1 . 3 Robot Hacks Applied 29 | . 1 . . . . . . . 7 . . 2 . . . . 3 . . 5 3 4 . 4 parse_system 26 | . 1 . . . . . . . 7 . . 1 . . . . 3 . . 5 3 2 . 4 find_chute 1 | . . . . . . . . . . . . 1 . . . . . . . . . . . . check_alert 2 | . . . . . . . . . . . . . . . . . . . . . . 2 . . Relay Couplers Released . | . . . . . . . . . . . . . . . . . . . . . . . . . Fabnet Peak Effective % . | . . . . . . . . . . . . . . . . . . . . . . . . . Robots Rewired 17 | . . . . . 4 . . 3 . . . . . . . . . . . 10 . . . . Allies Hacked . | . . . . . . . . . . . . . . . . . . . . . . . . . Hacks Repelled . | . . . . . . . . . . . . . . . . . . . . . . . . . Allies | -11 -10 -10 -8 -8 -8 -6 -6 -6 -6 -6 -5 -5 -5 -5 -5 -5 -5 -4 -4 -4 -4 -4 -4 -3 -------- Run | Yrd Mat Sub Mat Sto Rec Fac Low Low Zio Dee Pro Fac Was Fac Upp Upp War Pro Fac Ext Cet Arc Hub Res Total Allies 56 | . . . . 2 4 . 2 3 2 . . . 19 . . . . . . 19 5 . . . Largest Group 20 | . . . . 2 4 4 2 3 5 5 . . 19 7 . . . . . 15 20 19 15 . Highest-Rated Group 1165 | . . . . 62 73 73 51 90 282 282 . . 702 301 . . . . . 690 1165 1132 860 . Highest-Rated Ally 159 | . . . . 31 21 21 31 30 96 96 . . 50 50 . . . . . 159 159 159 96 . Total Orders 10 | . . . . . . . . 2 . 3 . . . . . . . . . . . . 5 . STAY 4 | . . . . . . . . 1 . 2 . . . . . . . . . . . . 1 . FOLLOW 2 | . . . . . . . . 1 . 1 . . . . . . . . . . . . . . EXPLORE 4 | . . . . . . . . . . . . . . . . . . . . . . . 4 . Ally Attacks 230 | . . . . 30 . 9 4 . . 26 . . . 25 . . . . . 35 34 25 42 . Total Damage 8027 | . . . . 532 . 191 49 . . 789 . . . 2130 . . . . . 849 823 772 1892 . Kills 52 | . . . . 4 . 3 1 . . 3 . . . 18 . . . . . 4 4 4 11 . Allies Corrupted . | . . . . . . . . . . . . . . . . . . . . . . . . . Allies Melted 2 | . . . . 1 . . . . . 1 . . . . . . . . . . . . . . Intel | -11 -10 -10 -8 -8 -8 -6 -6 -6 -6 -6 -5 -5 -5 -5 -5 -5 -5 -4 -4 -4 -4 -4 -4 -3 ------- Run | Yrd Mat Sub Mat Sto Rec Fac Low Low Zio Dee Pro Fac Was Fac Upp Upp War Pro Fac Ext Cet Arc Hub Res Active Infowar (turns) 29257 | 14 2407 3654 1543 1458 2079 1812 659 954 1116 213 904 1294 518 769 736 707 863 473 574 1946 419 1308 344 2493 Optics 11285 | . . . . . . . . . . . . 1293 518 769 736 707 863 473 574 1946 419 1308 344 1335 Sensors 2831 | . . . 1 . . 203 . . . . . 390 . . . . . . . . . . . 2237 IFF 2792 | . . . . . . 1 634 924 253 . 904 76 . . . . . . . . . . . . Terrain 2 | . . . . . 2 . . . . . . . . . . . . . . . . . . . Structural 10281 | . . . 794 . . 1762 659 780 863 213 . 702 . 612 706 707 863 473 574 573 . . . . Seismic 18618 | 14 2407 3654 1431 1458 2077 1284 25 . . . . 741 518 769 736 707 863 473 574 887 . . . . Jamming 2554 | . . . . . . . . . . . . . . 2 30 . . . 574 573 . . 224 1151 Robot Analysis Total 4 | . 2 . 1 1 . . . . . . . . . . . . . . . . . . . . Derelict Logs Recovered 11 | . . 2 . . . . 2 1 2 . . . . . 2 1 . 1 . . . . . . Drone Launches 5 | . . . . . . . . . . . . . . . . . . . . . . . 5 . Drone Recoveries 1 | . . . . . . . . . . . . . . . . . . . . . . . 1 . Exploration | -11 -10 -10 -8 -8 -8 -6 -6 -6 -6 -6 -5 -5 -5 -5 -5 -5 -5 -4 -4 -4 -4 -4 -4 -3 ------------- Run | Yrd Mat Sub Mat Sto Rec Fac Low Low Zio Dee Pro Fac Was Fac Upp Upp War Pro Fac Ext Cet Arc Hub Res Turns Passed 35259 | 39 2801 3896 1706 1643 4105 1813 659 983 1485 2588 1011 1294 518 769 736 707 863 473 574 1946 419 1308 344 2579 Spaces Moved 18838 | 19 886 1859 693 677 1764 1136 521 740 1133 1485 747 715 269 533 560 514 743 388 353 978 211 199 138 1577 Core 130 | . . . . . . . . . . . . . . . . . . . . . . 55 . 75 Treads 9191 | . 669 1859 693 677 1054 455 . 543 . 152 . . 143 51 . . . . 316 978 211 144 138 1108 Legs 5973 | 19 217 . . . . 326 521 197 1133 1333 747 715 126 . . . 214 388 37 . . . . . Wheels 906 | . . . . . 710 196 . . . . . . . . . . . . . . . . . . Hover 2638 | . . . . . . 159 . . . . . . . 482 560 514 529 . . . . . . 394 Flight . | . . . . . . . . . . . . . . . . . . . . . . . . . Fastest Speed 50 | 120 120 160 160 160 103 87 110 110 116 63 116 116 147 111 111 111 111 111 111 111 111 132 132 50 Average Speed 143 | 120 158 181 175 160 174 114 110 113 120 124 116 136 168 116 111 111 111 111 111 140 144 634 132 130 Slowest Speed 1950 | 120 190 240 240 160 320 153 110 135 141 165 116 147 173 173 111 111 111 111 111 185 160 1950 132 207 Overloaded Moves . | . . . . . . . . . . . . . . . . . . . . . . . . . Propulsion Burnouts . | . . . . . . . . . . . . . . . . . . . . . . . . . Robots Hopped . | . . . . . . . . . . . . . . . . . . . . . . . . . Potential Cave-ins 3 | . . . . . . . . . . . . 3 . . . . . . . . . . . . Cave-ins Triggered . | . . . . . . . . . . . . . . . . . . . . . . . . . Exploration Rate (%) 68 | 2 99 92 53 98 99 26 73 82 87 74 82 20 98 21 75 76 95 65 9 95 83 95 52 58 Regions Visited 24 Branch Regions 16 Pre-discovered Areas 16 | . 2 1 2 2 4 . 1 . 2 . . . . . . 1 . 1 . . . . . . Known Exits Taken 8 | . . . . 1 . 1 1 . . . 1 . . 1 . . . 1 . 1 . . 1 . Unknown Exits Taken 14 | 1 1 1 1 . 1 . . 1 1 1 . . . . 1 1 1 . 1 . 1 1 . . Scrap Searched 28 | . . 10 . . . . 1 6 1 . 3 . . . 2 3 . 2 . . . . . . Spaces Dug 138 | . . 1 8 2 1 5 4 6 . 13 1 40 . 11 15 . . 2 5 . . . 7 17 Terrain Destroyed 989 | . . 17 9 11 17 117 4 11 . 36 54 80 185 37 121 4 . 80 5 19 2 1 65 114 Melee 36 | . . . 1 2 1 2 4 6 . . . 10 . 6 1 . . . 2 . . . . 1 Projectile 212 | . . 6 8 . . 5 . 5 . 13 8 36 . 7 4 4 . 3 3 19 2 1 20 68 AOE 741 | . . 11 . 9 16 110 . . . 23 46 34 185 24 116 . . 77 . . . . 45 45 Terrain Rammed . | . . . . . . . . . . . . . . . . . . . . . . . . . Walls Destroyed . | . . . . . . . . . . . . . . . . . . . . . . . . . Machines Disabled . | . . . . . . . . . . . . . . . . . . . . . . . . . Actions | -11 -10 -10 -8 -8 -8 -6 -6 -6 -6 -6 -5 -5 -5 -5 -5 -5 -5 -4 -4 -4 -4 -4 -4 -3 --------- Run | Yrd Mat Sub Mat Sto Rec Fac Low Low Zio Dee Pro Fac Was Fac Upp Upp War Pro Fac Ext Cet Arc Hub Res Total 25661 | 26 2148 2273 1049 1077 2765 1526 605 857 1193 2190 854 929 317 635 641 647 777 418 530 1468 314 235 241 1946 Wait 4526 | 1 1141 288 190 245 779 147 61 31 11 568 60 48 27 27 31 122 7 9 160 342 80 26 41 84 Move 18815 | 18 885 1858 692 676 1763 1135 520 739 1132 1484 746 715 268 532 559 513 742 387 352 977 210 198 137 1577 Hop . | . . . . . . . . . . . . . . . . . . . . . . . . . Pick Up 249 | 1 13 10 10 8 37 40 5 13 . 26 9 13 1 3 5 3 4 3 4 8 5 . 2 26 Fast Attach 173 | 1 3 8 23 11 6 17 . 7 1 15 2 15 3 9 3 1 3 2 2 5 . . 1 35 Attach 78 | . 4 4 3 3 5 8 1 3 . 4 3 7 . 2 2 1 . . 2 1 . . 4 21 Detach 75 | . 5 1 1 2 16 7 1 4 . 1 1 8 . 3 1 1 . . . 2 . . . 21 Swap 256 | 1 9 31 34 38 8 21 2 1 11 8 5 13 3 8 8 1 2 5 . 11 . . 13 23 Drop 385 | . 7 17 31 25 44 52 11 11 1 42 9 23 7 13 4 2 8 5 5 9 4 . . 55 Fire 790 | 4 63 56 57 47 21 95 . 7 9 42 7 68 8 23 26 3 11 6 3 69 15 11 41 98 Melee 89 | . 1 . 7 4 5 3 4 11 1 . 12 19 . 11 2 . . 1 2 3 . . . 3 Ram . | . . . . . . . . . . . . . . . . . . . . . . . . . Kick 2 | . 2 . . . . . . . . . . . . . . . . . . . . . . . Crush 12 | . 7 . 1 2 . . . . . . . . . . . . . . . 1 . . . 1 Escape Stasis . | . . . . . . . . . . . . . . . . . . . . . . . . . Rewire 151 | . . . . . 81 . . 30 . . . . . 1 . . . . . 39 . . . . Trap 8 | . 8 . . . . . . . . . . . . . . . . . . . . . . . Miscellaneous 52 | . . . . 16 . 1 . . 27 . . . . 3 . . . . . 1 . . 2 2 Route ------- -11/Scrapyard -10/Materials (discovered 6 exits: [*Mat x3] / [*Min x2] / *Sub) -10/Subcaves (discovered 3 exits: *Mat x2 / Rec) -8/Materials (discovered 4 exits: *Fac x3 / *Sto) -8/Storage (discovered 2 exits: *Fac / *Rec) -8/Recycling -6/Factory (discovered 6 exits: *Fac x4 / *Low x2) -6/Lower Caves -6/Lower Caves (discovered 2 exits: Fac / *Zio) -6/Zion (discovered 2 exits: [*Dee] / [*Pro]) -6/Deep Caves -5/Proximity Caves -5/Factory (discovered 2 exits: Fac / Upp) -5/Waste -5/Factory (discovered 2 exits: *Upp x2) -5/Upper Caves -5/Upper Caves -5/Warlord -4/Proximity Caves -4/Factory (discovered 3 exits: Res / Upp / *Ext) -4/Extension (discovered 3 exits: *Res x2 / *Cet) -4/Cetus (discovered 2 exits: *Res / [*Arc]) -4/Archives (discovered 3 exits: *Res / *Hub x2) -4/Hub_04(d) (discovered 4 exits: *Res x4) -3/Research (discovered 1 exit: *Res) History --------- Turn | Location | Event 1 | -11/Scrapyard | Discovered new exit (range 3) 40 | -11/Scrapyard | Entered Materials 308 | -10/Materials | Build established: Mutant 887 | -10/Materials | Discovered new exit (range 5) 1177 | -10/Materials | Discovered new exit (range 6) 1280 | -10/Materials | Discovered new exit (range 15) 1740 | -10/Materials | Discovered new exit (range 11) 1836 | -10/Materials | Discovered new exit (range 6) 1910 | -10/Materials | Discovered new exit (range 16) 2448 | -10/Materials | Learned 4 Subcaves zone layouts 2591 | -10/Materials | Learned 4 Subcaves zone layouts 2645 | -10/Materials | Learned location of 2 exits from Mines 2721 | -10/Materials | Loaded intel: 1 repair station location 2825 | -10/Materials | Learned 2 Materials zone layouts 2841 | -10/Materials | Entered Subcaves 2887 | -10/Subcaves | A swath of the cavern ceiling suddenly collapsed 3271 | -10/Subcaves | Core integrity fell below 50% 3519 | -10/Subcaves | Visited Clippyterm 3524 | -10/Subcaves | Identified exit to Recycling 3639 | -10/Subcaves | Visited 4L-MR0's lab 3815 | -10/Subcaves | Learned location of 1 exit from Materials 4447 | -10/Subcaves | Disturbed a concealed Subdweller 4469 | -10/Subcaves | Disturbed a concealed Subdweller 4846 | -10/Subcaves | Shifting Twisted Machinery released Flamer 4871 | -10/Subcaves | Shifting Twisted Machinery released Flamer 5041 | -10/Subcaves | Discovered new exit (range 12) 5515 | -10/Subcaves | Learned location of Zion (-6) 5916 | -10/Subcaves | Build established: Scavenger-Mutant 6264 | -10/Subcaves | Discovered new exit (range 16) 6380 | -10/Subcaves | Found Flightbrick 6737 | -10/Subcaves | Entered Materials 6737 | -8/Materials | Evolved 4 slots: Propulsion x2, Utility x2 6738 | -8/Materials | Identified exit to Factory 7077 | -8/Materials | Discovered exit to Factory (range 5) 7177 | -8/Materials | Lost 3 parts (1p2n) 7960 | -8/Materials | Discovered exit to Factory (range 16) 7962 | -8/Materials | Discovered new exit (range 14) 8292 | -8/Materials | Garrison activated, responded to threat 8443 | -8/Materials | Entered Storage 8732 | -8/Storage | Central database locked down 9057 | -8/Storage | Found Prototype Launcher 9057 | -8/Storage | Identified Scatter Rocket Array 9113 | -8/Storage | Learned Factory fabricator intel 9142 | -8/Storage | Learned 4 Factory zone layouts 9159 | -8/Storage | Learned location of 3 exits from Factory 9168 | -8/Storage | Learned 2 Lower Caves zone layouts 9169 | -8/Storage | Learned location of 1 exit from Lower Caves 9170 | -8/Storage | Learned 2 Lower Caves zone layouts 9180 | -8/Storage | Learned location of 1 exit from Lower Caves 9264 | -8/Storage | Met a pair of Derelict thieves 10079 | -8/Storage | Used back door to open Recycling access 10079 | -8/Storage | Discovered exit to Recycling (range 5) 10086 | -8/Storage | Entered Recycling 11361 | -8/Recycling | Discovered new exit (range 15) 11830 | -8/Recycling | Entered Scraplab 11858 | -8/Recycling | Found Prototype Device 11858 | -8/Recycling | Identified Scrap Engine 12365 | -8/Recycling | Build established: Commander-Mutant 12797 | -8/Recycling | Learned location of Storage (-8) 12852 | -8/Recycling | Learned location of 1 exit from Extension 12935 | -8/Recycling | Learned Storage emergency access door positions 13046 | -8/Recycling | Learned Storage security intel 13087 | -8/Recycling | Build established: Commander-Construct 14191 | -8/Recycling | Entered Factory 14191 | -6/Factory | Accompanied by 4 allies 14191 | -6/Factory | Evolved 4 slots: Power x1, Utility x2, Weapon x1 14192 | -6/Factory | Identified exit to Factory 14192 | -6/Factory | Identified exit to Lower Caves 14195 | -6/Factory | Loaded intel: 6 fabricator locations 14399 | -6/Factory | Lost 3 allies 14664 | -6/Factory | Build established: Construct 16004 | -6/Factory | Entered Lower Caves 16005 | -6/Lower Caves | Identified exit to Lower Caves 16092 | -6/Lower Caves | Learned location of 1 exit from Proximity Caves 16111 | -6/Lower Caves | Entered an active Warlord outpost 16114 | -6/Lower Caves | A Commander dispatched an escort 16126 | -6/Lower Caves | Learned Armory stockpile data 16126 | -6/Lower Caves | Learned Research security intel 16555 | -6/Lower Caves | Encountered a Warlord checkpoint 16663 | -6/Lower Caves | Entered another Lower Caves area 16663 | -6/Lower Caves | Accompanied by 1 ally 16664 | -6/Lower Caves | Commander's escort returned to base 17153 | -6/Lower Caves | Found Alien Artifact 17153 | -6/Lower Caves | Identified Core Expander 17153 | -6/Lower Caves | Installed Core Expander, added new Weapon slot 17288 | -6/Lower Caves | Discovered new exit (range 15) 17301 | -6/Lower Caves | Learned location of 1 exit from Factory 17349 | -6/Lower Caves | Attacked by a delusional Derelict stockpiling Unaware 17349 | -6/Lower Caves | System corruption reached 10% 17646 | -6/Lower Caves | Entered Zion 17646 | -6/Zion | Accompanied by 3 allies 17670 | -6/Zion | Given A8's code to call for help 17703 | -6/Zion | System corruption cleaned by Quarantine Array 17727 | -6/Zion | Discovered new exit (range 15) 17739 | -6/Zion | Found CR-A16's Pointy Stick 18191 | -6/Zion | Met Imprinter 18386 | -6/Zion | Learned Factory stockpile data 18770 | -6/Zion | Given the Hacking Drone Bay 18977 | -6/Zion | Learned Factory emergency access door positions 19021 | -6/Zion | Enhanced Grunt warped into view, answering call for help 19022 | -6/Zion | Enhanced Grunt warped into view, answering call for help 19117 | -6/Zion | Discovered new exit (range 3) 19117 | -6/Zion | Saw the warning signs outside the Deep Caves entrance 19131 | -6/Zion | Entered Deep Caves 19131 | -6/Deep Caves | Accompanied by 5 allies 19459 | -6/Deep Caves | Z-Facility disabled 19482 | -6/Deep Caves | Attacked by Z-Imprinter 19492 | -6/Deep Caves | Destroyed Z-Imprinter 19515 | -6/Deep Caves | Found Prototype Protection 19515 | -6/Deep Caves | Identified Zio. Weapon Casing 19522 | -6/Deep Caves | Found Prototype Device 19522 | -6/Deep Caves | Identified Zio. Metafield Generator 19841 | -6/Deep Caves | Found Zio. Weapon Casing 19938 | -6/Deep Caves | Found Exp. Thermal Shield 19968 | -6/Deep Caves | Found Zio. Weapon Casing 20826 | -6/Deep Caves | Discovered new exit (range 7) 21291 | -6/Deep Caves | Spotted AG-50880 21527 | -6/Deep Caves | Found Exp. Thermal Shield 21719 | -6/Deep Caves | Entered Proximity Caves 21726 | -5/Proximity Caves | Spotter reported a threat 21903 | -5/Proximity Caves | Spotter reported a threat 21915 | -5/Proximity Caves | Spotter reported a threat 22043 | -5/Proximity Caves | Spotter reported a threat 22444 | -5/Proximity Caves | Spotted B-75 Beast 22609 | -5/Proximity Caves | Revealed the true nature of CR-A16's Pointy Stick 22612 | -5/Proximity Caves | Destroyed B-75 Beast 22629 | -5/Proximity Caves | Lost 3 parts (3u) 22730 | -5/Proximity Caves | Entered Factory 22730 | -5/Factory | Evolved 2 slots: Utility x2 22731 | -5/Factory | Identified exit to Upper Caves 22731 | -5/Factory | Identified exit to Factory 23030 | -5/Factory | Search patrols dispatched 23094 | -5/Factory | Garrison activated, responded to threat 23519 | -5/Factory | Cargo convoy interrupted 23569 | -5/Factory | Destroyed 15 combat bots 23579 | -5/Factory | Lost 3 parts (1p2u) 23630 | -5/Factory | First assault squad dispatched 24024 | -5/Factory | Sucked down chute 24024 | -5/Factory | Entered Waste 24040 | -5/Waste | Spotted C-40 Crusher 24088 | -5/Waste | Spotted C-40 Crusher 24092 | -5/Waste | Spotted C-40 Crusher 24100 | -5/Waste | Spotted C-40 Crusher 24119 | -5/Waste | Destroyed C-40 Crusher 24124 | -5/Waste | Destroyed C-40 Crusher 24128 | -5/Waste | Destroyed C-40 Crusher 24131 | -5/Waste | Destroyed C-40 Crusher 24131 | -5/Waste | Spotted C-40 Crusher 24149 | -5/Waste | Destroyed C-40 Crusher 24154 | -5/Waste | Spotted C-40 Crusher 24162 | -5/Waste | Destroyed C-40 Crusher 24372 | -5/Waste | Discovered new exit (range 12) 24385 | -5/Waste | Warlord forces began an assault 24495 | -5/Waste | Murdered 12 allies 24542 | -5/Waste | Entered Factory 24542 | -5/Factory | Accompanied by 7 allies 24842 | -5/Factory | Lost 4 allies 25128 | -5/Factory | System corruption reached 10% 25221 | -5/Factory | Found Prototype Launcher 25221 | -5/Factory | Identified Tesla Bomb Launcher 25311 | -5/Factory | Entered Upper Caves 25674 | -5/Upper Caves | Learned location of 1 exit from Factory 25727 | -5/Upper Caves | Attracted the attention of an 0b10 checkpoint 25772 | -5/Upper Caves | Learned 8 Factory zone layouts 25945 | -5/Upper Caves | Spotted B-75 Beast 25979 | -5/Upper Caves | Destroyed B-75 Beast 26041 | -5/Upper Caves | Discovered new exit (range 5) 26047 | -5/Upper Caves | Entered another Upper Caves area 26129 | -5/Upper Caves | Spotted B-75 Beast 26462 | -5/Upper Caves | Discovered new exit (range 14) 26754 | -5/Upper Caves | Entered Warlord 26801 | -5/Warlord | System corruption cleaned by Quarantine Array 26953 | -5/Warlord | Received a Watcher feed algorithm from an ecstatic Tinkerer 27130 | -5/Warlord | Met Warlord 27155 | -5/Warlord | Warlord's base attacked by MAIN.C 27226 | -5/Warlord | Found Prototype Energy Gun 27226 | -5/Warlord | Identified Vortex Rifle 27238 | -5/Warlord | Found Vortex Rifle 27308 | -5/Warlord | Found Prototype Device 27308 | -5/Warlord | Identified Exp. Phase Shifter 27496 | -5/Warlord | Spotted Striker 27505 | -5/Warlord | Warlord forces counterattacked 27517 | -5/Warlord | P-70 Sage assimilated allied WA-VN0(m) 27518 | -5/Warlord | Destroyed Striker 27557 | -5/Warlord | Lost 7 allies 27587 | -5/Warlord | Opened side exit 27609 | -5/Warlord | Discovered new exit (range 9) 27617 | -5/Warlord | Entered Proximity Caves 27642 | -4/Proximity Caves | Lost 8 allies 27713 | -4/Proximity Caves | Attracted the attention of an 0b10 checkpoint 27830 | -4/Proximity Caves | Spotted B-86 Titan 27848 | -4/Proximity Caves | Destroyed B-86 Titan 27969 | -4/Proximity Caves | Discovered exit to Factory (range 15) 28090 | -4/Proximity Caves | Entered Factory 28090 | -4/Factory | Evolved 2 slots: Utility x2 28091 | -4/Factory | Identified exit to Research 28092 | -4/Factory | Identified exit to Upper Caves 28383 | -4/Factory | Build established: Infiltrator-Construct 28563 | -4/Factory | Discovered new exit (range 6) 28664 | -4/Factory | Entered Extension 28909 | -4/Extension | Repaired Med. Insulated Plating 29353 | -4/Extension | Spotted B-86 Titan 29459 | -4/Extension | Destroyed B-86 Titan 29482 | -4/Extension | Spotted B-86 Titan 29548 | -4/Extension | Destroyed B-86 Titan 29588 | -4/Extension | Build established: Construct 29917 | -4/Extension | Learned Research garrison access intel 29977 | -4/Extension | Learned Factory scanalyzer intel 30027 | -4/Extension | Identified exit to Cetus 30069 | -4/Extension | Learned Factory emergency access door positions 30101 | -4/Extension | Learned Factory emergency access door positions 30123 | -4/Extension | Learned Armory terminal intel 30152 | -4/Extension | Learned Testing emergency access door positions 30180 | -4/Extension | Learned location of 1 exit from Research 30186 | -4/Extension | Rescued A7 30218 | -4/Extension | Rescued a captive Derelict 30264 | -4/Extension | Learned 2 Armory zone layouts 30292 | -4/Extension | Rescued a captive Derelict 30314 | -4/Extension | Rescued a captive Derelict 30321 | -4/Extension | Rescued a captive Derelict 30322 | -4/Extension | Rescued a captive Derelict 30350 | -4/Extension | Rescued a captive Derelict 30359 | -4/Extension | Rescued a captive Derelict 30378 | -4/Extension | Rescued a captive Derelict 30385 | -4/Extension | Build established: Commander-Construct 30610 | -4/Extension | Entered Cetus 30610 | -4/Cetus | Accompanied by 15 allies (A7) 30615 | -4/Cetus | Acquired a Cetus Manufacturing Module code from A7 30622 | -4/Cetus | Spotted Cetus Guard 30622 | -4/Cetus | Spotted Cetus Guard 30623 | -4/Cetus | Spotted Cetus Guard 30623 | -4/Cetus | Spotted Cetus Guard 30628 | -4/Cetus | Destroyed Cetus Guard 30631 | -4/Cetus | Destroyed Cetus Guard 30633 | -4/Cetus | Destroyed Cetus Guard 30635 | -4/Cetus | Destroyed Cetus Guard 30714 | -4/Cetus | Started Cetus Manufacturing Module 30735 | -4/Cetus | Escorted A7 to Cetus Mainframe 30739 | -4/Cetus | Manufactured an Enhanced Grunt 30764 | -4/Cetus | Manufactured an Enhanced Grunt 30789 | -4/Cetus | Manufactured an Enhanced Grunt 30808 | -4/Cetus | Discovered new exit (range 21) 30814 | -4/Cetus | Manufactured an Enhanced Grunt 30839 | -4/Cetus | Manufactured an Enhanced Grunt 30841 | -4/Cetus | Spotted Cetus Guard 30841 | -4/Cetus | Spotted Cetus Guard 30842 | -4/Cetus | Spotted Cetus Guard 30842 | -4/Cetus | Spotted Cetus Guard 30845 | -4/Cetus | Discovered exit to Research (range 21) 30848 | -4/Cetus | Destroyed Cetus Guard 30862 | -4/Cetus | Destroyed Cetus Guard 30864 | -4/Cetus | Allies destroyed Cetus Guard 30866 | -4/Cetus | Allies destroyed Cetus Guard 30888 | -4/Cetus | Met Revision 17 31029 | -4/Cetus | Entered Archives 31029 | -4/Archives | Accompanied by 19 allies (A7) 31034 | -4/Archives | Received a hacking code to weaken MAIN.C 31057 | -4/Archives | Discovered new exit (range 22) 31075 | -4/Archives | Discovered new exit (range 22) 31088 | -4/Archives | Discovered exit to Research (range 21) 31098 | -4/Archives | Lost 3 allies 32337 | -4/Archives | Entered Hub_04(d) 32337 | -4/Hub_04(d) | Accompanied by 15 allies 32470 | -4/Hub_04(d) | Lost 15 allies 32598 | -4/Hub_04(d) | Network Hub disabled 32605 | -4/Hub_04(d) | Spotted Lightning 32605 | -4/Hub_04(d) | Spotted Lightning 32610 | -4/Hub_04(d) | Spotted Lightning 32658 | -4/Hub_04(d) | Spotted Lightning 32659 | -4/Hub_04(d) | Spotted Lightning 32681 | -4/Hub_04(d) | Entered Research 32681 | -3/Research | Evolved 2 slots: Propulsion x1, Utility x1 32682 | -3/Research | Identified exit to Research 32684 | -3/Research | Loaded intel: 3 garrison access locations 32706 | -3/Research | Lost 3 parts (2u1w) 32746 | -3/Research | Build established: Construct 32881 | -3/Research | Revision forces began assault on 0b10 33056 | -3/Research | Met up with Revision 17++ 33381 | -3/Research | Research terminal network offline 33699 | -3/Research | Build established: Scavenger-Construct 33852 | -3/Research | Found Prototype Processor 33852 | -3/Research | Identified Exp. Target Analyzer 34025 | -3/Research | Spotted B-86 Titan 34029 | -3/Research | Destroyed B-86 Titan 34189 | -3/Research | Found Adv. Powered Armor 34275 | -3/Research | Spotted Striker 34279 | -3/Research | Build established: Construct 34651 | -3/Research | Spotted Striker 34653 | -3/Research | Spotted Striker 34655 | -3/Research | Spotted Executioner 34703 | -3/Research | Destroyed Striker 34711 | -3/Research | Destroyed Striker 34730 | -3/Research | Destroyed Executioner 34763 | -3/Research | Spotted Executioner 34827 | -3/Research | Spotted Striker 34862 | -3/Research | Found Prototype Processor 34862 | -3/Research | Identified Exp. Core Analyzer 34924 | -3/Research | Destroyed Striker 35103 | -3/Research | Spotted Striker 35107 | -3/Research | Spotted Executioner 35120 | -3/Research | Destroyed Striker 35161 | -3/Research | Spotted Striker 35164 | -3/Research | Spotted Striker 35177 | -3/Research | Destroyed Striker 35186 | -3/Research | Destroyed Striker 35193 | -3/Research | Spotted Striker 35212 | -3/Research | Spotted Striker 35213 | -3/Research | Spotted Executioner 35217 | -3/Research | Spotted Striker 35231 | -3/Research | Core integrity fell below 50% 35238 | -3/Research | Spotted Striker 35245 | -3/Research | Core integrity fell below 20% 35260 | -3/Research | Self-destructed Last Messages --------------- 35231_ Scrap Engine consumes Lyr. Medium Armor Plating. 35232_ Slug penetrates Striker. 35232_ Penetrated by Slug. 35232_ Treaded Centrium-Heavy Exoskeleton destroyed. 35232_ Scrap Engine damaged due to network destabilization (-6). 35233_ Penetrated by Slug. 35234_ S-43 Plague destroyed. 35234_ Slug penetrates Wall. 35238_ Scanalyzer disabled. 35240_ C-30 ARC bursts open, deploying its payload. 35240_ S-43 Plague unfolds itself. 35241_ S-43 Plague destroyed. 35243_ Acquired 109 matter. 35247_ S-43 Plague destroyed. 35248_ Revision destroyed. 35260_ Scrap Engine destroyed. Map ----- +----------------------------------------------------+ | * =!=!=%%!!%!*! " #???????????? | | %[ !%% [!=%!*/!=*![ #""" #???????????? | | ### #%T##![#!%!##%[ " #???????????? | | ?## ## # #############= # #???????????? | | # #????""""??# #?########???????????? | | [# #????"""" ?#! #????????????????????? | | # ## * """" ?#%% #????????????????????? | | % # ## """" #[ #????????????????????? | | # ## # #????????????????????? | | ! # "" "" ## / % +????????????????????? | | ! # "" "" ## #s #????????????????????? | | # """" ## #s% #????????????????????? | | #######?############?#s #????????????????????? | | ####?????????????"""" ?# #????????????????????? | | ##?????????????"""" /#[ #????????????????????? | | #???????????? """" #! %#????????????????????? | | ##???????????? """" +! =#????????????????????? | | ##??????????# #%*!#????????????????????? | | #??????????# #=%[#????????????????????? | | #??????????# ?#%==#????????????????????? | | #??????????# ?#=!!#????????????????????? | | ##??????????########??#[%[#????????????????????? | | ##????????????????????# * #????????????????????? | | #????????????????????# #????????????????????? | | ###????????????????????# #????????????????????? | | ??????????????????????#@ #????????????????????? | | %## ##??????????????????# #????????????????????? | | """ #??????????????????# ;#???????????????????? | | % "###??????????????????#% ##???????????????????? | | [%"#????????????????????# #????????????????????? | | % ##????????????????????# #????????????????????? | | #????#######??????????; ;????????????????????? | | #??? #??????????# ;????????????????????? | | #??? #??????????; ##???????????????????? | | #?? #??????????; #????????????????????? | | #+##? #??????????# #????????????????????? | | # #??????????? #????????????????????? | | # ![ #??????????? #????????????????????? | | + ![ #??????????? #????????????????????? | | # #??????????? #????????????????????? | | ###########??????????? ?????????????????????? | | # #?????????????????????????????????????? | | # [ #?????????????????????????????????????? | | %= + #?????????????????????????????????????? | | ! # #?????????????????????????????????????? | | # #?????????????????????????????????????? | | # ### #?????????????????????????????????????? | | # #?########?????????????????????????????????????? | | # #??????????????????????????????????????????????? | | # #??????????????????????????????????????????????? | +----------------------------------------------------+ Best States ------------- Heat Dissipation 136 Coolant Potential 120 Energy Generation 61 Energy Capacity 1044 Matter Stores 300 Matter Capacity 300 Sight Range 23 Robot Scan Range 19 Terrain Scan Density 10 Jamming Range 14 Additional Mass Support 12 Base Temperature (-) 200 Armor Coverage 1200 Resistance: KI 30 Resistance: TH 30 Resistance: EM 20 Core Shielding 40 Weapon Shielding 100 Phase Shifting 20 Evasion (%) 60 Target Analysis 10 Core Analysis 8 Armor Integrity Analysis 40 Recoil Reduction 5 Energy Filtering 50 Item Schematics ----------------- Phase Shifter | -8/Storage | Hacked Powered Armor | -6/Factory | Hacked Adv. Sensor Array | -6/Zion | Archive Adv. Shield Generator | -6/Zion | Archive Imp. Proton Missile Launcher | -6/Zion | Archive Lyr. Heavy Armor Plating | -6/Zion | Archive Phase Cannon | -6/Zion | Archive Adv. Plasma Cannon | -6/Zion | Archive Imp. Heavy Armor Plating | -6/Zion | Archive Imp. Remote Shield | -6/Zion | Archive Hyp. Gauss Cannon | -6/Zion | Archive Adv. Melee Analysis Suite | -6/Zion | Archive Proton Cannon | -6/Zion | Archive Imp. Plasma Cutter | -6/Zion | Archive Imp. Force Field | -6/Zion | Archive IFF Parser | -6/Zion | Archive Imp. Dynamic Insulation System | -6/Zion | Archive Robot Schematics ------------------ M-28 Smith | -6/Zion | Archive G-47 Trooper | -6/Zion | Archive R-10 Processor | -6/Zion | Archive H-88 Terminator | -6/Zion | Archive Fabricated ------------ Nothing Repaired ---------- Med. Insulated Plating | 34% | -4/Extension Alien Tech Used ----------------- Core Expander Achievements -------------- Equal Opportunity Bot Challenges ------------ None Game ------ Seed LinkedStormHammer Manual? 0 Play Time 04:38:49 Cumulative 493.2 hours Start 2025.06.25 @ 21:08:01 End 2025.06.26 @ 14:48:49 Sessions 5 Manual Loads 0 Difficulty Rogue Special Mode None Game No. 258 Rogue 195 Adventurer 63 Explorer 0 Win Type - Total 9 Types 8/0/0/1/0/0/0/0/0/0 Lore% 90 Gallery% 81 Achievement% 67 Wizard Run 0 Options --------- Layout 2 ASCII 0 Keyboard 1 Movement Numpad Keybinds 0 Fullscreen 2 Font 24/Terminus Map View 50x44 Zoom Use 0% Tactical HUD 1 Map Filters NONE Filters NONE Steam 1 RUN: 7525e522-776b-4a98-b184-a5ae0b24b15f